bitfinex/quotes_BTCUSD_20250406
["timestamp","ask_amount","ask_price","bid_price","bid_amount"]
[1743981752676,0.03,77319.0,77311.0,0.012934]
[1743981752871,0.012941,77271.0,77191.0,1.11728659]
[1743981753071,0.042945,77246.0,77245.0,0.02404303]
[1743981753224,0.04553426,77246.0,77233.0,0.258954]
[1743981753432,0.04553426,77246.0,77232.0,0.012948]
[1743981753433,0.03,77245.0,77237.0,0.271888]
[1743981753631,0.03,77245.0,77244.0,0.00062149]
[1743981755263,0.005,77246.0,77245.0,0.271861]
[1743981755419,0.005,77246.0,77245.0,0.4012497]
[1743981755623,0.025,77261.0,77260.0,0.271809]
[1743981755952,0.025,77261.0,77260.0,0.012943]
[1743981756155,0.025,77260.0,77251.0,0.271838]
[1743981756359,0.005,77274.0,77269.0,0.258836]
[1743981756583,0.025,77271.0,77270.0,0.012941]
[1743981757872,0.025,77271.0,77270.0,0.01307658]
[1743981758118,0.025,77271.0,77270.0,0.14505339]
[1743981758260,0.001,77274.0,77273.0,0.012941]
[1743981758464,0.001,77274.0,77273.0,0.1423297]
[1743981758776,0.001,77274.0,77273.0,0.14491755]
[1743981758993,0.001,77274.0,77273.0,0.14491758]
[1743981759197,0.001,77274.0,77273.0,0.1423297]
[1743981759403,0.025,77295.0,77293.0,0.27169]
[1743981759562,0.055,77300.0,77298.0,0.012936]
[1743981759763,0.055,77300.0,77299.0,0.4010597]
[1743981759764,0.05,77300.0,77299.0,0.4010597]
[1743981761188,0.025,77318.0,77310.0,0.271632]
[1743981761387,0.046,77361.0,77332.0,0.012931]
[1743981761388,0.025,77335.0,77332.0,0.012931]
[1743981761626,0.07513628,77333.0,77332.0,0.012931]
[1743981762030,0.025,77330.0,77320.0,0.012933]
[1743981762228,0.025,77330.0,77300.0,0.58535493]
[1743981762229,0.258638,77328.0,77321.0,0.1293887]
[1743981762415,0.005,77329.0,77326.0,0.271577]
[1743981762744,0.025,77331.0,77330.0,0.012931]
[1743981762910,0.005,77329.0,77322.0,0.012932]
[1743981763111,0.012933,77317.0,77290.0,0.58535493]
[1743981763322,0.025,77312.0,77301.0,0.012936]
[1743981763568,0.258644,77327.0,77291.0,0.01198229]
[1743981763569,0.012935,77305.0,77291.0,0.01198229]
[1743981763907,0.03,77292.0,77291.0,0.01198229]
[1743981764283,0.042937,77292.0,77291.0,0.01198229]
[1743981764532,0.04552626,77292.0,77291.0,0.01198229]
[1743981764706,0.005,77294.0,77293.0,0.012937]
[1743981764843,0.025,77298.0,77297.0,0.012937]
[1743981765692,0.025,77298.0,77294.0,0.012937]
[1743981765914,0.025,77298.0,77291.0,0.27183158]
[1743981765915,0.025,77293.0,77291.0,0.01307358]
[1743981766118,0.042937,77292.0,77291.0,0.00013558]
[1743981766324,0.07724809,77292.0,77291.0,0.00013558]
[1743981766522,0.005,77269.0,77259.0,0.012943]
[1743981766786,0.005,77269.0,77263.0,0.271798]
[1743981767008,0.03,77264.0,77255.0,0.012944]
[1743981767198,0.03,77260.0,77256.0,0.012943]
[1743981767401,0.025,77256.0,77249.0,0.271846]
[1743981767518,0.012942,77265.0,77223.0,0.0477]
[1743981767519,0.005,77260.0,77253.0,0.258888]
[1743981767744,0.03,77260.0,77259.0,0.271812]
[1743981768227,0.005,77254.0,77249.0,0.012945]
[1743981768427,0.025,77251.0,77250.0,0.012944]
[1743981768715,0.03,77254.0,77253.0,0.012944]
[1743981769129,0.00013611,77260.0,77259.0,0.271812]
[1743981769281,0.00013611,77260.0,77259.0,0.4012007]
[1743981769493,0.00013611,77260.0,77259.0,0.012943]
[1743981769698,0.00013611,77260.0,77259.0,0.1423317]
[1743981769896,0.00013611,77260.0,77259.0,0.14492005]
[1743981770143,0.00013611,77260.0,77259.0,0.1423317]
[1743981770708,0.00013611,77260.0,77259.0,0.1449201]
[1743981770933,0.005,77291.0,77260.0,0.34]
[1743981771127,0.005,77294.0,77293.0,0.271692]
[1743981771331,0.03,77300.0,77299.0,0.271671]
[1743981771553,0.03,77312.0,77311.0,0.012934]
[1743981771755,0.025,77307.0,77306.0,0.012935]
[1743981771954,0.03,77307.0,77306.0,0.012935]
[1743981772156,0.258642,77327.0,77306.0,0.012935]
[1743981772157,0.025,77313.0,77309.0,0.012935]
[1743981772371,0.025,77319.0,77310.0,0.1293887]
[1743981772580,0.258749,77295.0,77287.0,0.258772]
[1743981772786,0.012936,77298.0,77288.0,0.1293887]
[1743981772787,0.005,77297.0,77288.0,0.1293887]
[1743981772987,0.27171,77288.0,77276.0,0.01294]
[1743981773192,0.025,77286.0,77279.0,0.01294]
[1743981773403,0.025,77286.0,77272.0,0.258823]
[1743981773404,0.025,77261.0,77247.0,0.0474]
[1743981773539,0.13197796,77285.0,77257.0,0.012943]
[1743981773540,0.025,77259.0,77257.0,0.012943]
[1743981773740,0.025,77260.0,77259.0,0.012943]
[1743981773986,0.005,77266.0,77265.0,0.012942]
[1743981774188,0.025,77281.0,77280.0,0.271738]
[1743981774400,0.0457,77307.0,77280.0,0.271738]
[1743981774401,0.025,77288.0,77285.0,0.258779]
[1743981774600,0.025,77288.0,77284.0,0.012939]
[1743981774601,0.005,77279.0,77278.0,0.271744]
[1743981774978,0.03,77279.0,77278.0,0.271744]
[1743981775178,0.03,77279.0,77278.0,0.29365031]
[1743981775376,0.005,77284.0,77283.0,0.012939]
[1743981775586,0.005,77293.0,77290.0,0.258762]
[1743981775788,0.03,77302.0,77301.0,0.271664]
[1743981776190,0.03,77302.0,77301.0,0.012936]
[1743981776389,0.03,77296.0,77295.0,0.012937]
[1743981776826,0.00013631,77296.0,77295.0,0.05694037]
[1743981777375,0.00013631,77296.0,77295.0,0.012937]
[1743981777575,0.00013631,77296.0,77295.0,0.01552422]
[1743981777972,0.00113631,77296.0,77295.0,0.1423257]
[1743981778502,3.1e-07,77296.0,77295.0,0.49945354]
[1743981778788,3.1e-07,77296.0,77295.0,0.49686655]
[1743981778986,0.051,77328.0,77327.0,0.271573]
[1743981779337,0.025,77325.0,77324.0,0.271583]
[1743981779707,0.02613628,77328.0,77327.0,0.271573]
[1743981779708,0.05113628,77328.0,77327.0,0.271573]
[1743981780036,0.025,77307.0,77302.0,0.012936]
[1743981780224,0.03,77301.0,77296.0,0.012937]
[1743981780424,0.005,77308.0,77307.0,0.258708]
[1743981780671,0.025,77309.0,77308.0,0.012935]
[1743981780882,0.00258926,77321.0,77308.0,0.012935]
[1743981780883,0.025,77312.0,77311.0,0.012934]
[1743981781085,0.03,77312.0,77311.0,0.012934]
[1743981781239,0.03,77312.0,77311.0,0.271629]
[1743981781440,0.03,77312.0,77311.0,0.33753868]
[1743981781690,0.03,77312.0,77311.0,0.271629]
[1743981781920,0.03,77312.0,77311.0,0.012934]
[1743981782404,0.005,77300.0,77281.0,0.258792]
[1743981782597,0.025,77305.0,77302.0,0.012936]
[1743981782598,0.005,77303.0,77302.0,0.012936]
[1743981782796,0.002,77308.0,77307.0,0.271643]
[1743981783041,0.03,77309.0,77305.0,0.258715]
[1743981783243,0.025,77298.0,77282.0,0.0258792]
[1743981783444,0.025,77298.0,77236.0,0.0001675]
[1743981783445,0.012941,77268.0,77259.0,0.012943]
[1743981783641,0.005,77270.0,77269.0,0.258835]
[1743981783848,0.025,77287.0,77286.0,0.012938]
[1743981784189,0.025,77275.0,77273.0,0.258822]
[1743981784414,0.025,77274.0,77273.0,0.271761]
[1743981784832,0.025,77275.0,77274.0,0.271759]
[1743981785029,0.005,77284.0,77273.0,0.012941]
[1743981785030,0.258746,77296.0,77288.0,0.012938]
[1743981785238,0.025,77282.0,77281.0,0.012939]
[1743981785575,0.271704,77290.0,77277.0,0.01294]
[1743981785576,0.005,77278.0,77277.0,0.01294]
[1743981785803,0.03,77278.0,77277.0,0.01294]
[1743981786087,0.04294,77275.0,77274.0,0.00028336]
[1743981786262,0.21436724,77275.0,77274.0,0.00028336]
[1743981786467,0.017941,77270.0,77269.0,0.005]
[1743981786796,0.43375096,77270.0,77269.0,0.005]
[1743981786966,0.43375096,77270.0,77255.0,0.012944]
[1743981786967,0.025,77262.0,77259.0,0.258869]
[1743981787302,0.025,77262.0,77252.0,0.012944]
[1743981787303,0.025,77270.0,77269.0,0.012941]
[1743981787427,0.005,77273.0,77272.0,0.012941]
[1743981787635,0.60944,77303.0,77284.0,0.012939]
[1743981787636,0.025,77285.0,77284.0,0.012939]
[1743981787849,0.025,77274.0,77273.0,0.012941]
[1743981788064,0.025,77274.0,77273.0,0.4011517]
[1743981788288,0.025,77274.0,77269.0,0.00013631]
[1743981788289,0.042941,77270.0,77269.0,0.00013631]
[1743981788487,0.03,77270.0,77269.0,0.00013631]
[1743981788689,0.005,77270.0,77269.0,0.01307731]
[1743981788908,0.03,77270.0,77269.0,0.27190931]
[1743981789369,0.03,77270.0,77269.0,0.01307731]
[1743981790122,0.005,77280.0,77279.0,0.01294]
[1743981790385,0.258832,77270.0,77269.0,0.00013631]
[1743981790498,0.03,77270.0,77269.0,0.00113631]
[1743981790706,0.005,77270.0,77269.0,0.04136954]
[1743981790937,0.005,77277.0,77276.0,0.27175]
[1743981791158,0.03,77277.0,77276.0,0.27175]
[1743981791389,0.03,77291.0,77290.0,0.271703]
[1743981791836,0.005,77303.0,77297.0,0.012937]
[1743981792054,0.03,77306.0,77305.0,0.27165]
[1743981792314,0.025,77307.0,77306.0,0.012935]
[1743981792534,0.03,77311.0,77310.0,0.271632]
[1743981793013,0.03,77306.0,77305.0,0.012935]
[1743981793245,0.03,77306.0,77293.0,0.258754]
[1743981793246,0.012938,77288.0,77279.0,0.258801]
[1743981793468,0.005,77281.0,77280.0,0.271738]
[1743981793690,0.005,77302.0,77301.0,0.012936]
[1743981793917,0.005,77305.0,77301.0,0.012936]
[1743981794158,0.258653,77324.0,77316.0,0.271609]
[1743981794390,0.012932,77326.0,77311.0,0.271629]
[1743981794391,0.025,77312.0,77311.0,0.271629]
[1743981794615,0.025,77312.0,77290.0,0.84411693]
[1743981794616,0.005,77304.0,77299.0,0.012936]
[1743981794866,0.005,77294.0,77293.0,0.012937]
[1743981795109,0.005,77294.0,77287.0,0.012938]
[1743981795110,0.005,77286.0,77283.0,0.271727]
[1743981795354,0.258695,77311.0,77283.0,0.271727]
[1743981795355,0.001,77288.0,77287.0,0.271713]
[1743981795622,0.001,77288.0,77287.0,0.41564255]
[1743981795864,0.025,77302.0,77301.0,0.271664]
[1743981796117,0.025,77302.0,77292.0,0.012937]
[1743981796118,0.005,77297.0,77291.0,0.012938]
[1743981796298,0.03,77297.0,77296.0,0.012937]
[1743981797259,0.025,77301.0,77300.0,0.271668]
[1743981797414,0.005,77299.0,77293.0,0.016937]
[1743981797620,0.005,77299.0,77298.0,0.012936]
[1743981797817,0.025,77309.0,77306.0,0.012935]
[1743981798016,0.03,77324.0,77323.0,0.271583]
[1743981798250,0.00258926,77330.0,77317.0,0.012933]
[1743981798251,0.03,77318.0,77317.0,0.012933]
[1743981798477,0.062931,77333.0,77296.0,0.003]
[1743981798478,0.005,77297.0,77296.0,0.003]
[1743981798682,0.005,77297.0,77296.0,0.015937]
[1743981798890,0.005,77297.0,77296.0,0.012937]
[1743981799095,0.03,77300.0,77299.0,0.271671]
[1743981799302,0.005,77297.0,77293.0,0.012937]
[1743981799507,0.005,77296.0,77295.0,0.258748]
[1743981799690,0.025,77300.0,77299.0,0.271671]
[1743981799893,0.025,77306.0,77303.0,0.271658]
[1743981800092,0.025,77307.0,77306.0,0.012935]
[1743981800333,0.005,77314.0,77306.0,0.012935]
[1743981800334,0.03,77314.0,77313.0,0.012934]
[1743981800538,0.258695,77311.0,77303.0,0.271644]
[1743981800735,0.00258926,77326.0,77276.0,0.61122]
[1743981800736,0.005,77296.0,77292.0,0.012937]
[1743981800893,0.03,77296.0,77295.0,0.258748]
[1743981801095,0.03,77296.0,77295.0,0.31437987]
[1743981801649,0.005,77296.0,77295.0,0.31437987]
[1743981801806,0.03,77296.0,77295.0,0.44376857]
[1743981802010,0.03,77287.0,77286.0,0.00964831]
[1743981802220,0.03,77287.0,77286.0,0.41075401]
[1743981802221,0.025,77287.0,77286.0,0.41075401]
[1743981802424,0.005,77302.0,77301.0,0.271664]
[1743981802675,0.03,77302.0,77301.0,0.271664]
[1743981803140,0.005,77300.0,77299.0,0.271671]
[1743981803347,0.03,77295.0,77294.0,0.271686]
[1743981804147,0.03,77304.0,77303.0,0.012936]
[1743981804535,0.025,77304.0,77303.0,0.4010457]
[1743981804737,0.005,77314.0,77313.0,0.271622]
[1743981804938,0.03,77326.0,77325.0,0.012932]
[1743981805141,0.025,77326.0,77325.0,0.1423207]
[1743981805368,0.02513634,77327.0,77326.0,0.271577]
[1743981805569,0.02513634,77327.0,77326.0,0.4009657]
[1743981805795,0.02513634,77327.0,77326.0,0.41295446]
[1743981805796,0.00013634,77327.0,77326.0,0.41295446]
[1743981805997,0.00013634,77327.0,77326.0,0.1293887]
[1743981806273,0.258682,77315.0,77314.0,0.01189442]
[1743981806436,0.005,77308.0,77307.0,0.012935]
[1743981806631,0.005,77308.0,77307.0,0.1423237]
[1743981807059,0.005,77307.0,77297.0,0.00947597]
[1743981807234,0.03,77299.0,77298.0,0.00258708]
[1743981807563,0.025,77300.0,77299.0,0.271671]
[1743981807706,0.03,77300.0,77299.0,0.271671]
[1743981807903,0.025,77300.0,77299.0,0.271671]
[1743981808120,0.005,77300.0,77299.0,0.271671]
[1743981808323,0.03,77300.0,77299.0,0.271671]
[1743981808524,0.00258926,77311.0,77296.0,0.258745]
[1743981808525,0.025,77297.0,77296.0,0.271682]
[1743981808824,0.03,77299.0,77298.0,0.012936]
[1743981809321,0.258621,77334.0,77325.0,0.012932]
[1743981809566,0.025,77326.0,77325.0,0.012932]
[1743981809725,0.025,77326.0,77319.0,0.012933]
[1743981809726,0.03,77311.0,77307.0,0.012935]
[1743981809924,0.03,77300.0,77299.0,0.006]
[1743981810119,0.005,77300.0,77299.0,0.018936]
[1743981810384,0.03,77300.0,77299.0,0.018936]
[1743981810784,0.005,77281.0,77277.0,0.01294]
[1743981811006,0.005,77282.0,77281.0,0.012939]
[1743981811126,0.0515,77318.0,77287.0,0.012938]
[1743981811127,0.025,77288.0,77287.0,0.012938]
[1743981811331,0.005,77291.0,77290.0,0.271703]
[1743981811534,0.025,77300.0,77299.0,0.271671]
[1743981811749,0.03,77300.0,77299.0,0.271671]
[1743981811971,0.03,77290.0,77289.0,0.012938]
[1743981812296,0.03,77288.0,77287.0,0.31570387]
[1743981812493,0.03,77278.0,77277.0,0.00013631]
[1743981812738,0.17491796,77278.0,77277.0,0.00013631]
[1743981813378,0.17491796,77278.0,77261.0,0.258861]
[1743981813379,0.301836,77252.0,77239.0,0.0001675]
[1743981813591,0.4312247,77252.0,77251.0,0.11476864]
[1743981813710,0.7712247,77252.0,77251.0,0.11476864]
[1743981813926,0.80593157,77252.0,77251.0,0.11476864]
[1743981814170,0.80593157,77252.0,77239.0,0.0001675]
[1743981814171,0.83093157,77252.0,77239.0,0.0001675]
[1743981814366,0.666861,77245.0,77244.0,0.00030361]
[1743981814578,0.7962497,77245.0,77244.0,0.00030361]
[1743981814785,0.79439159,77245.0,77244.0,0.00030361]
[1743981814995,0.80595657,77245.0,77244.0,0.00030361]
[1743981815323,0.07765187,77245.0,77244.0,0.00030361]
[1743981815518,0.08024113,77245.0,77244.0,0.00030361]
[1743981815727,0.06729613,77245.0,77244.0,0.00030361]
[1743981815935,0.08024113,77245.0,77244.0,0.00030361]
[1743981816098,0.44540394,77245.0,77244.0,0.00030361]
[1743981816422,0.7712497,77245.0,77244.0,0.00030361]
[1743981816792,0.90065515,77245.0,77244.0,0.00030361]
[1743981817008,0.92367818,77245.0,77244.0,0.00030361]
[1743981817217,0.633933,77240.0,77239.0,0.0001675]
[1743981817421,0.79929073,77240.0,77239.0,0.0001675]
[1743981817608,0.933029,77240.0,77239.0,0.0001675]
[1743981817814,0.80641548,77240.0,77239.0,0.0001675]
[1743981818017,0.1593887,77240.0,77239.0,0.0001675]
[1743981818223,0.04553526,77240.0,77239.0,0.0001675]
[1743981818442,0.04753526,77240.0,77239.0,0.0001675]
[1743981818642,0.03458926,77240.0,77239.0,0.0001675]
[1743981818850,0.17692396,77240.0,77239.0,0.0001675]
[1743981819049,0.00958926,77240.0,77239.0,0.0001675]
[1743981819304,0.00958926,77240.0,77239.0,0.04164705]
[1743981819305,0.032,77240.0,77239.0,0.04164705]
[1743981819506,0.007,77240.0,77239.0,0.04164705]
[1743981820126,0.002,77240.0,77239.0,0.17362493]
[1743981820332,0.002,77240.0,77239.0,0.17103575]
[1743981820707,0.03013622,77245.0,77244.0,0.012945]
[1743981820966,0.00013622,77245.0,77244.0,0.43862883]
[1743981821392,0.00513622,77245.0,77244.0,0.271864]
[1743981821548,0.03013622,77245.0,77244.0,0.271864]
[1743981821932,0.03013622,77245.0,77244.0,0.277864]
[1743981822151,0.00013622,77245.0,77244.0,0.4072527]
[1743981822754,0.00013622,77245.0,77244.0,0.3953187]
[1743981822949,0.00513622,77245.0,77244.0,0.26593]
[1743981823139,0.00013622,77245.0,77244.0,0.3953187]
[1743981824392,0.005,77293.0,77292.0,0.012937]
[1743981824611,0.03,77287.0,77281.0,0.258793]
[1743981824797,0.03,77278.0,77277.0,0.01294]
[1743981825001,0.03,77275.0,77274.0,0.01294]
[1743981825203,0.03,77258.0,77257.0,0.012943]
[1743981825782,0.025,77264.0,77263.0,0.012942]
[1743981825988,0.03,77240.0,77239.0,0.2591035]
[1743981826327,0.03,77240.0,77239.0,0.2720495]
[1743981826514,0.03,77240.0,77239.0,0.0001675]
[1743981827081,0.03,77240.0,77239.0,0.0131135]
[1743981827306,0.0497,77278.0,77257.0,0.012943]
[1743981827507,0.025,77250.0,77249.0,0.012945]
[1743981827731,0.025,77253.0,77252.0,0.271836]
[1743981827930,0.025,77266.0,77265.0,0.012942]
[1743981828144,0.00045472,77273.0,77265.0,0.012942]
[1743981828145,0.00045472,77273.0,77272.0,0.012941]
[1743981828361,0.00045472,77273.0,77272.0,0.41828334]
[1743981828625,0.00045472,77273.0,77272.0,0.41550069]
[1743981829160,0.00045472,77273.0,77272.0,0.42150069]
[1743981829409,0.00045472,77273.0,77272.0,0.4446989]
[1743981829633,0.00045472,77273.0,77272.0,0.80662637]
[1743981829820,0.025,77294.0,77293.0,0.271692]
[1743981829979,0.005,77300.0,77299.0,0.271671]
[1743981830325,0.02513641,77300.0,77299.0,0.1423247]
[1743981830482,0.02513641,77300.0,77299.0,0.18503617]
[1743981831201,0.03013641,77300.0,77299.0,0.04271147]
[1743981831402,0.00513641,77300.0,77298.0,0.012936]
[1743981831563,0.00013641,77300.0,77299.0,0.4010597]
[1743981831767,0.00013641,77300.0,77299.0,0.4030597]
[1743981832242,0.03013641,77300.0,77299.0,0.002]
[1743981833652,0.03,77290.0,77289.0,0.012938]
[1743981833796,0.03,77291.0,77290.0,0.012938]
[1743981833993,0.03,77296.0,77295.0,0.258748]
[1743981834198,0.00013641,77300.0,77295.0,0.258748]
[1743981834199,0.005,77298.0,77297.0,0.271679]
[1743981834399,0.00013641,77300.0,77299.0,0.271671]
[1743981834716,0.00013641,77300.0,77299.0,0.4010597]
[1743981835312,4.1e-07,77300.0,77299.0,0.81756315]
[1743981835900,4.1e-07,77300.0,77299.0,0.82713117]
[1743981836261,4.1e-07,77300.0,77299.0,0.4502597]
[1743981836623,4.1e-07,77300.0,77299.0,0.4010597]
[1743981837045,4.1e-07,77300.0,77299.0,0.4070597]
[1743981837446,4.1e-07,77300.0,77299.0,0.4010597]
[1743981837658,4.1e-07,77300.0,77299.0,0.4070597]
[1743981838799,4.1e-07,77300.0,77299.0,0.42160055]
[1743981839661,4.1e-07,77300.0,77299.0,0.4070597]
[1743981840687,4.1e-07,77300.0,77299.0,0.1353887]
[1743981840898,4.1e-07,77300.0,77299.0,0.006]
[1743981840899,0.03000041,77300.0,77299.0,0.006]
[1743981841090,0.30166841,77300.0,77299.0,0.006]
[1743981841740,0.03000041,77300.0,77299.0,0.006]
[1743981841910,0.00500041,77300.0,77299.0,0.018936]
[1743981842076,0.03000041,77300.0,77299.0,0.012936]
[1743981842283,0.03000041,77300.0,77293.0,0.012937]
[1743981842284,0.025,77294.0,77293.0,0.012937]
[1743981842487,0.03,77297.0,77296.0,0.271682]
[1743981842693,0.03000041,77300.0,77299.0,0.012936]
[1743981843046,0.03000041,77300.0,77299.0,0.1423247]
[1743981843641,0.03000041,77300.0,77299.0,0.1483247]
[1743981843841,4.1e-07,77300.0,77299.0,0.1483247]
[1743981844006,0.00500041,77300.0,77299.0,0.1423247]
[1743981844347,0.28873241,77300.0,77299.0,0.006]
[1743981844559,0.45993035,77300.0,77299.0,0.006]
[1743981844765,0.45993035,77300.0,77256.0,0.012943]
[1743981844766,0.005,77259.0,77256.0,0.012943]
[1743981844968,0.005,77259.0,77251.0,0.24404]
[1743981844969,0.005,77259.0,77257.0,0.1293887]
[1743981845259,0.025,77260.0,77249.0,0.271846]
[1743981845260,0.03,77252.0,77249.0,0.271846]
[1743981845539,0.00258926,77265.0,77247.0,0.271854]
[1743981845540,0.025,77254.0,77247.0,0.271854]
[1743981845764,0.005,77252.0,77250.0,0.1293887]
[1743981845902,0.025,77244.0,77241.0,0.28432861]
[1743981846103,0.025,77246.0,77245.0,0.271861]
[1743981846331,0.03,77251.0,77247.0,0.271854]
[1743981846527,0.03,77244.0,77243.0,0.00045472]
[1743981846688,0.042945,77244.0,77243.0,0.00045472]
[1743981846890,0.2309998,77244.0,77243.0,0.00045472]
[1743981847123,0.1723337,77244.0,77243.0,0.00045472]
[1743981848133,0.19796931,77244.0,77243.0,0.00045472]
[1743981848310,0.53796931,77244.0,77243.0,7.2e-07]
[1743981848513,0.382946,77240.0,77239.0,0.0001675]
[1743981848717,0.641882,77239.0,77238.0,1e-06]
[1743981848909,0.022947,77237.0,77228.0,0.0001675]
[1743981849129,0.52144769,77237.0,77236.0,0.00030372]
[1743981849337,0.52144769,77237.0,77218.0,0.013117]
[1743981849338,0.005,77219.0,77218.0,0.00875582]
[1743981849704,0.03,77219.0,77218.0,0.26775882]
[1743981850080,0.005,77219.0,77218.0,0.26775882]
[1743981850305,0.00258926,77235.0,77230.0,0.012948]
[1743981850306,0.005,77231.0,77230.0,0.012948]
[1743981850514,0.02513619,77237.0,77236.0,0.271893]
[1743981850724,0.005,77236.0,77235.0,0.012947]
[1743981850904,0.03,77236.0,77235.0,0.012947]
[1743981851144,0.005,77235.0,77234.0,0.012947]
[1743981851317,0.005,77225.0,77224.0,0.012949]
[1743981851517,0.03,77225.0,77224.0,0.271933]
[1743981851768,0.00013619,77237.0,77235.0,0.012947]
[1743981851990,0.00013619,77237.0,77236.0,0.14492494]
[1743981852456,0.00013619,77237.0,77236.0,0.49687655]
[1743981852457,1.9e-07,77237.0,77236.0,0.49687655]
[1743981852676,1.9e-07,77237.0,77236.0,0.4823357]
[1743981853049,1.9e-07,77237.0,77236.0,0.1423357]
[1743981853415,1.9e-07,77237.0,77229.0,0.258967]
[1743981853416,0.005,77231.0,77229.0,0.258967]
[1743981853599,0.03,77232.0,77231.0,0.271911]
[1743981853971,1.9e-07,77237.0,77236.0,0.271893]
[1743981854096,1.9e-07,77237.0,77236.0,0.4012817]
[1743981854305,1.9e-07,77237.0,77225.0,0.258982]
[1743981854306,0.258967,77230.0,77215.0,0.259016]
[1743981854528,0.03,77216.0,77215.0,0.1293887]
[1743981854764,0.03,77216.0,77215.0,0.1423387]
[1743981855407,0.025,77223.0,77219.0,0.01295]
[1743981855608,0.025,77218.0,77217.0,0.271957]
[1743981855809,0.289013,77216.0,77215.0,0.006]
[1743981856017,0.03,77216.0,77215.0,0.01895]
[1743981856186,0.03,77221.0,77218.0,0.01295]
[1743981856409,0.03,77221.0,77219.0,0.1293887]
[1743981856587,0.025,77220.0,77219.0,0.4013417]
[1743981856989,0.03,77221.0,77220.0,0.01295]
[1743981857168,0.03,77221.0,77220.0,0.1423387]
[1743981857339,0.03,77221.0,77220.0,0.17782737]
[1743981857751,0.005,77233.0,77232.0,0.012948]
[1743981857948,1.9e-07,77237.0,77236.0,0.271893]
[1743981858152,1.9e-07,77237.0,77236.0,0.4012817]
[1743981858408,1.9e-07,77237.0,77236.0,0.43170271]
[1743981858610,1.9e-07,77237.0,77236.0,0.77170271]
[1743981858872,1.9e-07,77237.0,77236.0,0.79900616]
[1743981859036,0.271731,77282.0,77259.0,0.271812]
[1743981859037,0.025,77262.0,77259.0,0.271812]
[1743981859236,0.005,77261.0,77260.0,0.1423317]
[1743981859416,0.005,77261.0,77260.0,0.17782037]
[1743981859602,0.025,77262.0,77261.0,0.271805]
[1743981859803,0.03,77262.0,77261.0,0.4011937]
[1743981860001,0.00258926,77275.0,77254.0,0.27183]
[1743981860002,0.025,77255.0,77254.0,0.27183]
[1743981860360,0.025,77249.0,77248.0,0.012945]
[1743981860498,0.005,77237.0,77236.0,0.018947]
[1743981860706,0.03,77238.0,77237.0,0.27189]
[1743981860949,0.03,77238.0,77237.0,0.4012787]
[1743981861498,0.03,77231.0,77230.0,0.271914]
[1743981861698,0.025,77224.0,77223.0,0.271939]
[1743981861905,0.005,77241.0,77237.0,0.271889]
[1743981862145,0.025,77238.0,77237.0,0.277889]
[1743981862356,0.258907,77248.0,77241.0,0.271875]
[1743981862535,0.03,77242.0,77241.0,0.271875]
[1743981862914,0.03,77243.0,77241.0,0.1293887]
[1743981863117,0.0003342,77268.0,77255.0,0.271826]
[1743981863118,0.025,77256.0,77255.0,0.271826]
[1743981863339,0.03,77262.0,77261.0,0.012943]
[1743981863540,0.005,77253.0,77249.0,0.012945]
[1743981863861,0.005,77253.0,77252.0,0.012944]
[1743981864088,0.03,77254.0,77253.0,0.271833]
[1743981864230,0.025,77254.0,77253.0,0.271833]
[1743981864634,0.00292346,77268.0,77258.0,0.271815]
[1743981864635,0.005,77261.0,77258.0,0.271815]
[1743981864839,0.025,77262.0,77261.0,0.012943]
[1743981865055,0.03,77266.0,77265.0,0.271791]
[1743981865250,0.025,77266.0,77265.0,0.271791]
[1743981865450,0.03,77267.0,77266.0,0.012942]
[1743981865849,0.03,77267.0,77266.0,0.007942]
[1743981866256,0.03,77267.0,77266.0,0.1373307]
[1743981866657,0.0307892,77268.0,77267.0,0.271784]
[1743981866857,0.0007892,77268.0,77267.0,0.4011727]
[1743981867999,0.0007892,77268.0,77267.0,0.7868727]
[1743981868155,0.0007892,77268.0,77267.0,0.80141355]
[1743981868543,0.0007892,77268.0,77267.0,0.80741355]
[1743981868747,0.025,77297.0,77289.0,0.271707]
[1743981869009,0.00013644,77298.0,77297.0,0.012937]
[1743981869224,0.00013644,77298.0,77297.0,0.44376217]
[1743981869360,0.000334,77315.0,77314.0,0.271619]
[1743981869559,0.005,77314.0,77306.0,0.012935]
[1743981869767,0.005,77312.0,77311.0,0.271629]
[1743981869986,0.000334,77315.0,77314.0,0.271619]
[1743981870209,0.000334,77315.0,77314.0,0.42422291]
[1743981870768,0.000334,77315.0,77314.0,0.76422291]
[1743981871064,0.000334,77315.0,77314.0,0.42422291]
[1743981871825,0.000334,77315.0,77314.0,0.43022291]
[1743981872219,0.00032525,77320.0,77319.0,0.271601]
[1743981872420,0.00032525,77320.0,77319.0,0.44368417]
[1743981872613,0.02532525,77320.0,77319.0,0.44368417]
[1743981872967,0.00032525,77320.0,77319.0,0.44368417]
[1743981873909,0.00032525,77320.0,77319.0,0.78368417]
[1743981874568,0.00032525,77320.0,77319.0,0.80422502]
[1743981874874,0.000335,77344.0,77319.0,0.17808317]
[1743981874875,0.025,77322.0,77319.0,0.17808317]
[1743981875080,0.03,77320.0,77319.0,0.271601]
[1743981875282,0.025,77311.0,77306.0,0.271646]
[1743981875431,0.025,77311.0,77269.0,0.1159322]
[1743981875432,0.258722,77303.0,77297.0,0.01238544]
[1743981875631,0.012935,77308.0,77289.0,0.0127626]
[1743981875632,0.005,77308.0,77306.0,0.012935]
[1743981875831,0.025,77328.0,77327.0,0.012932]